bitfinex-derivatives/quotes_SOLF0:USTF0_20251210
["timestamp","ask_amount","ask_price","bid_price","bid_amount"]
[1765371433509,0.04787899,137.99,137.95,3.08]
[1765371433816,0.04787899,137.99,137.96,3.26]
[1765371435021,6.5223,137.98,137.96,3.26]
[1765371436319,0.04787899,137.99,137.96,3.26]
[1765371436715,0.04787899,137.99,137.98,9.7821]
[1765371437722,0.04787899,137.99,137.98,3.26]
[1765371438510,3.47372242,138.01,137.98,3.26]
[1765371439520,3.52817535,138.01,137.98,3.26]
[1765371440020,10.04897535,138.01,137.99,3.26]
[1765371440616,6.5221,137.99,137.97,3.31450222]
[1765371441522,6.5212,138.0,137.97,3.31450222]
[1765371442015,3.52817535,138.01,137.97,3.31450222]
[1765371442326,3.52817535,138.01,137.98,3.26]
[1765371442526,107.77729746,138.13,138.02,3.26]
[1765371442728,101.3529,138.12,138.02,3.26]
[1765371442940,101.3678,138.1,138.04,3.26]
[1765371443220,101.3678,138.1,138.01,3.26]
[1765371443221,101.3752,138.09,138.01,3.26]
[1765371443426,101.3752,138.09,138.04,0.05024594]
[1765371443629,101.3752,138.09,138.04,3.31024594]
[1765371443827,6.5185,138.06,138.04,0.05024594]
[1765371445422,6.5185,138.06,138.04,3.31024594]
[1765371445826,6.5178,138.08,138.04,3.31024594]
[1765371446128,61.4,138.09,138.04,3.31024594]
[1765371446720,67.9173,138.09,138.04,3.31024594]
[1765371446924,6.5173,138.09,138.04,3.31024594]
[1765371448029,6.5173,138.09,138.05,3.26]
[1765371448230,162.73,138.13,138.05,3.26]
[1765371448231,6.5163,138.11,138.05,3.26]
[1765371448528,6.5163,138.11,138.07,3.30921738]
[1765371449131,107.76979746,138.14,138.07,3.30921738]
[1765371449132,6.42839746,138.14,138.07,3.30921738]
[1765371449333,61.38,138.15,138.07,3.30921738]
[1765371449528,6.42839746,138.14,138.07,3.30921738]
[1765371449924,162.715,138.15,138.07,3.30921738]
[1765371450125,67.8945,138.15,138.08,6.5173]
[1765371450432,67.8945,138.15,138.1,0.05294063]
[1765371451832,6.5146,138.14,138.1,0.05294063]
[1765371452835,61.38,138.15,138.1,0.05294063]
[1765371453039,12.94459746,138.11,138.04,3.26]
[1765371453337,101.3459,138.13,138.04,3.26]
[1765371453541,6.5161,138.11,138.05,9.7787]
[1765371453836,101.3557,138.12,138.02,3.18]
[1765371454030,0.055209,138.08,138.06,0.05165671]
[1765371455532,0.055209,138.08,137.99,61.36]
[1765371455533,101.3971,138.06,137.98,3.18]
[1765371455838,67.78839746,138.05,137.98,3.18]
[1765371456039,67.78839746,138.05,137.95,3.18]
[1765371456040,169.19589746,138.05,137.95,3.18]
[1765371456541,0.05341198,138.01,137.99,0.04719402]
[1765371458441,0.05341198,138.01,137.99,6.56869402]
[1765371459140,0.05341198,138.01,137.99,9.74869402]
[1765371461335,0.05341198,138.01,137.99,6.56869402]
[1765371462138,0.05341198,138.01,137.99,0.04719402]
[1765371465639,6.57421198,138.01,137.99,0.04719402]
[1765371466745,61.38,138.0,137.93,3.18]
[1765371467737,0.05446666,137.98,137.95,3.22731069]
[1765371468138,61.38,138.04,137.95,3.22731069]
[1765371468335,61.38,138.04,137.95,3.18]
[1765371469232,0.05072012,138.01,137.98,3.22610318]
[1765371470639,0.05072012,138.01,137.98,0.04610318]
[1765371471245,6.5212,138.0,137.98,0.04610318]
[1765371472445,6.5212,138.0,137.98,3.22610318]
[1765371477146,6.5216,137.99,137.98,0.04610318]
[1765371478554,6.5213,138.0,137.98,3.22610318]
[1765371479253,6.5213,138.0,137.98,0.04610318]
[1765371480257,0.05072012,138.01,137.98,3.22610318]
[1765371481358,6.5214,138.0,137.98,3.22610318]
[1765371481654,0.05072012,138.01,137.98,0.04610318]
[1765371482252,0.05072012,138.01,137.9,162.8891]
[1765371482253,101.4562,137.98,137.92,3.18]
[1765371482751,162.8324,138.02,137.92,3.18]
[1765371483155,6.5216,137.99,137.96,3.18]
[1765371483456,6.57197448,137.99,137.96,3.22610829]
[1765371485355,6.5222,137.98,137.96,0.04610829]
[1765371486552,67.9222,137.98,137.96,0.04610829]
[1765371487257,0.05037448,137.99,137.96,3.07610829]
[1765371489562,6.57207448,137.99,137.96,3.07610829]
[1765371491160,0.00037448,137.99,137.96,3.07610829]
[1765371491355,101.3954,138.07,137.97,3.09]
[1765371491557,61.4,138.08,137.97,104.55]
[1765371491758,6.5186,138.06,138.01,3.09]
[1765371492163,67.9175,138.08,138.02,3.09]
[1765371492460,67.9175,138.08,138.01,6.5204]
[1765371492461,0.05170373,138.06,138.04,3.14154555]
[1765371492768,0.0505901,138.06,138.04,3.13895361]
[1765371493466,0.0505901,138.06,138.04,0.04895361]
[1765371494762,6.5690901,138.06,138.04,0.04895361]
[1765371494961,0.0505901,138.06,137.98,9.612]
[1765371495164,101.3942,138.07,137.99,3.09]
[1765371495564,6.5194,138.04,137.99,3.09]
[1765371495769,101.4073,138.05,137.96,18.41119498]
[1765371495967,0.05343357,138.02,137.99,3.14007476]
[1765371497774,0.05343357,138.02,137.99,0.05007476]
[1765371498473,6.5209,138.01,137.99,0.05007476]
[1765371498863,101.4342,138.01,137.93,11.88839498]
[1765371499060,101.4294,138.02,137.93,3.09]
[1765371499259,173.52280971,138.04,137.94,3.09]
[1765371499475,173.52280971,138.04,137.95,3.09]
[1765371499869,0.05492987,138.01,137.98,0.04662185]
[1765371500570,6.5213,138.0,137.98,0.04662185]
[1765371502469,67.9213,138.0,137.98,0.04662185]
[1765371503070,61.4,138.0,137.98,3.13662185]
[1765371503673,61.4,138.0,137.98,0.04662185]
[1765371505574,67.9213,138.0,137.98,0.04662185]
[1765371506878,61.4,138.0,137.98,3.13662185]
[1765371508079,61.4,138.0,137.98,0.04662185]
[1765371514080,61.4,138.0,137.98,3.36662185]
[1765371514283,0.05492987,138.01,137.98,3.36662185]
[1765371518084,6.57572987,138.01,137.98,0.04662185]
[1765371518481,6.57572987,138.01,137.98,3.36662185]
[1765371522890,0.05492987,138.01,137.98,9.88862185]
[1765371523089,0.05492987,138.01,137.98,3.36662185]
[1765371523490,0.05492987,138.01,138.0,3.32]
[1765371524691,0.05492987,138.01,138.0,9.8412]
[1765371525190,0.05492987,138.01,138.0,3.32]
[1765371528889,6.57562987,138.01,138.0,3.32]
[1765371530500,6.57562987,138.01,137.98,0.04662185]
[1765371530501,2.51824572,138.01,137.98,0.04662185]
[1765371530901,6.5216,137.99,137.98,0.04662185]
[1765371531995,8.98491585,137.99,137.98,0.04662185]
[1765371533188,6.5216,137.99,137.98,0.04662185]
[1765371533392,8.98491585,137.99,137.98,0.04662185]
[1765371533796,8.98491585,137.99,137.98,3.36662185]
[1765371534292,8.98491585,137.99,137.98,0.04662185]
[1765371535201,6.5216,137.99,137.98,0.04662185]
[1765371535400,8.98491585,137.99,137.98,0.04662185]
[1765371538002,6.5216,137.99,137.98,0.04662185]
[1765371538201,8.98491585,137.99,137.98,0.04662185]
[1765371538802,70.38491585,137.99,137.98,0.04662185]
[1765371539199,101.4583,137.98,137.92,3.32]
[1765371539403,2.46331585,137.95,137.92,3.32]
[1765371540098,2.51012343,137.95,137.92,3.37146486]
[1765371540994,9.03372343,137.95,137.92,3.37146486]
[1765371542605,9.03372343,137.95,137.92,0.05146486]
[1765371543308,2.46331585,137.93,137.92,0.05146486]
[1765371543801,2.46331585,137.93,137.86,3.32]
[1765371544007,2.46331585,137.91,137.86,3.32]
[1765371544508,9.99221713,137.95,137.89,3.01]
[1765371544509,2.46331585,137.94,137.89,3.01]
[1765371544708,0.05559477,137.93,137.91,3.01]
[1765371545609,2.46331585,137.92,137.9,0.05091228]
[1765371545812,2.46331585,137.92,137.9,3.06091228]
[1765371546005,0.05559477,137.93,137.9,3.06091228]
[1765371546210,0.05559477,137.93,137.91,3.01]
[1765371547313,0.05559477,137.93,137.91,6.5254]
[1765371547610,0.05559477,137.93,137.92,3.01]
[1765371548611,0.05559477,137.93,137.9,0.05091228]
[1765371548612,0.05559477,137.93,137.91,3.03]
[1765371549609,0.05559477,137.93,137.9,3.08091228]
[1765371550012,6.58019477,137.93,137.9,3.08091228]
[1765371550213,2.46331585,137.92,137.9,0.05091228]
[1765371551010,2.46331585,137.92,137.9,3.08091228]
[1765371552509,9.04341062,137.93,137.9,0.05091228]
[1765371553021,6.58009477,137.93,137.9,0.05091228]
[1765371553317,9.04341062,137.93,137.9,0.05091228]
[1765371553717,6.5251,137.92,137.9,0.05091228]
[1765371553918,2.46331585,137.91,137.9,0.05091228]
[1765371558330,6.5262,137.9,137.85,3.03]
[1765371558522,2.46331585,137.89,137.85,3.03]
[1765371558722,2.46331585,137.89,137.86,3.03]
[1765371559324,2.51504146,137.89,137.86,3.08054056]
[1765371559523,0.05172561,137.89,137.86,3.08054056]
[1765371564928,6.57812561,137.89,137.86,3.08054056]
[1765371565330,6.57812561,137.89,137.86,0.05054056]
[1765371565726,6.5273,137.87,137.86,0.05054056]
[1765371566040,8.99061585,137.87,137.86,0.05054056]
[1765371566240,63.92331585,137.87,137.79,3.03]
[1765371566444,2.46331585,137.85,137.79,3.03]
[1765371567036,2.46331585,137.95,137.88,3.03]
[1765371567335,0.04621517,137.93,137.9,0.04570811]
[1765371567835,2.46331585,137.92,137.9,0.04570811]
[1765371568234,0.04621517,137.93,137.9,0.04570811]
[1765371568434,2.50953102,137.93,137.9,0.04570811]
[1765371569942,9.03433102,137.93,137.9,0.04570811]
[1765371572345,70.49433102,137.93,137.9,0.04570811]
[1765371576454,63.96953102,137.93,137.9,0.04570811]
[1765371576754,61.50621517,137.93,137.9,0.04570811]
[1765371577551,61.46,137.92,137.9,3.30570811]
[1765371578756,0.04621517,137.93,137.9,9.83130811]
[1765371578961,0.04621517,137.93,137.91,3.26]
[1765371582157,6.57081517,137.93,137.9,3.30570811]
[1765371585650,6.5249,137.92,137.9,3.30570811]
[1765371590552,6.5249,137.92,137.9,0.04570811]
[1765371590750,6.5254,137.91,137.9,0.04570811]
[1765371595355,65.50712874,137.92,137.86,3.26]
[1765371596356,6.5265,137.89,137.88,0.0500213]
[1765371596957,6.5273,137.87,137.83,23.35385797]
[1765371597160,4.04712874,137.88,137.84,3.26]
[1765371597862,6.5277,137.87,137.84,3.26]
[1765371598051,6.58159153,137.87,137.84,3.31552215]
[1765371600256,4.04712874,137.86,137.84,0.05552215]
[1765371600558,4.04712874,137.86,137.78,64.7]
[1765371600753,4.04712874,137.84,137.78,3.26]
[1765371601568,0.0475079,137.82,137.8,3.31099671]
[1765371602163,6.5773079,137.82,137.8,3.31099671]
[1765371602366,10.62443664,137.82,137.8,0.05099671]
[1765371602960,10.62443664,137.82,137.74,3.26]
[1765371602961,4.09463664,137.82,137.74,3.26]
[1765371603356,4.04712874,137.8,137.74,3.26]
[1765371603555,6.5317,137.78,137.74,3.26]
[1765371604067,0.04731978,137.77,137.75,0.05203808]
[1765371604969,0.04731978,137.77,137.75,3.15203808]
[1765371605166,101.5398,137.87,137.75,4.61203808]
[1765371605370,65.52712874,137.84,137.76,3.1]
[1765371605871,6.5298,137.82,137.77,3.1]
[1765371606266,0.04772665,137.81,137.78,0.04912609]
[1765371606466,10.57792874,137.8,137.78,0.04912609]
[1765371606667,72.05792874,137.8,137.78,0.04912609]
[1765371607266,4.04712874,137.79,137.78,0.04912609]
[1765371607464,10.57852874,137.79,137.73,3.1]
[1765371608371,0.05519427,137.77,137.75,0.0514683]
[1765371608568,0.05519427,137.77,137.75,3.3814683]
[1765371611482,0.05519427,137.77,137.75,9.9143683]
[1765371611669,0.05519427,137.77,137.76,3.33]
[1765371612267,6.5295,137.83,137.78,3.33]
[1765371612473,61.5,137.84,137.78,3.33]
[1765371612673,4.04712874,137.83,137.78,3.33]
[1765371613178,0.04861059,137.82,137.79,0.05256571]
[1765371614990,6.5303,137.81,137.79,0.05256571]
[1765371615382,0.04861059,137.82,137.79,0.05256571]
[1765371617196,6.57841059,137.82,137.79,0.05256571]
[1765371618490,6.5302,137.81,137.79,0.05256571]
[1765371621497,10.57732874,137.81,137.79,0.05256571]
[1765371621695,101.5976,137.79,137.75,3.33]
[1765371621892,105.64472874,137.79,137.75,3.33]
[1765371622301,6.5326,137.76,137.72,3.33]
[1765371622692,0.05261725,137.75,137.73,3.38187281]
[1765371622902,0.04833697,137.75,137.73,3.38187281]
[1765371623201,61.5,137.8,137.73,3.38187281]
[1765371623397,61.54,137.8,137.73,3.38187281]
[1765371623602,6.5321,137.77,137.73,3.38187281]
[1765371624305,0.05043721,137.76,137.73,3.38187281]
[1765371630009,0.05043721,137.76,137.73,9.91577281]
[1765371630494,0.05043721,137.76,137.74,3.33]
[1765371635013,0.04,137.75,137.73,9.84577281]
[1765371635212,0.05043721,137.76,137.74,3.26]
[1765371635712,0.05043721,137.76,137.75,3.26]
[1765371636410,0.05043721,137.76,137.74,9.7934]
[1765371638711,0.05043721,137.76,137.74,3.26]
[1765371639712,6.62303721,137.76,137.74,3.26]
[1765371640005,6.62303721,137.76,137.73,3.31187281]
[1765371640212,9.16941532,137.75,137.73,0.05187281]
[1765371640815,2.59641532,137.75,137.73,3.31187281]
[1765371641019,0.05043721,137.76,137.73,3.31187281]
[1765371641509,110.59063787,137.85,137.76,3.26]
[1765371641510,2.59641532,137.8,137.76,3.26]
[1765371642406,0.05272867,137.79,137.77,3.31312013]
[1765371643609,2.59641532,137.78,137.77,0.05312013]
[1765371644506,2.68641532,137.78,137.77,0.05312013]
[1765371644909,9.21801532,137.78,137.77,0.05312013]
[1765371645716,6.6222,137.77,137.74,3.26]
[1765371645917,2.59641532,137.76,137.74,3.26]
[1765371646508,2.68641532,137.78,137.74,3.26]
[1765371646708,2.68641532,137.78,137.75,3.30595142]
[1765371647017,9.21841532,137.78,137.75,3.30595142]
[1765371648108,0.09,137.77,137.75,0.04595142]
[1765371648709,6.6225,137.76,137.75,0.04595142]
[1765371649111,0.09,137.76,137.75,0.04595142]
[1765371649312,2.68641532,137.78,137.75,3.30595142]
[1765371649618,0.09,137.76,137.75,0.04595142]
[1765371650708,6.6222,137.77,137.75,0.04595142]
[1765371651707,6.5322,137.77,137.75,3.30595142]
[1765371652424,6.6222,137.77,137.75,3.30595142]
[1765371652807,6.6225,137.76,137.75,0.04595142]
[1765371653011,9.21891532,137.76,137.75,0.04595142]
[1765371653413,0.09,137.74,137.7,3.26]
[1765371653619,2.59641532,137.71,137.68,3.26]
[1765371654019,2.68641532,137.71,137.68,3.26]
[1765371654410,2.73566343,137.71,137.68,3.30831521]
[1765371654617,0.04924811,137.71,137.7,3.26]
[1765371655420,0.04924811,137.71,137.69,3.26]
[1765371656213,0.04924811,137.71,137.69,9.7958]
[1765371656414,0.04924811,137.71,137.7,3.26]
[1765371662621,0.04924811,137.71,137.68,3.30831521]
[1765371663922,6.58434811,137.71,137.68,3.30831521]
[1765371664620,6.67434811,137.71,137.68,3.30831521]
[1765371664818,0.09,137.69,137.68,0.04831521]
[1765371665017,0.09,137.69,137.62,3.34]
[1765371665219,0.09,137.69,137.6,13.56465797]
[1765371665220,2.59641532,137.71,137.64,3.34]
[1765371665626,6.6258,137.7,137.66,3.34]
[1765371665822,6.5358,137.7,137.66,3.34]
[1765371666018,0.0481783,137.69,137.68,3.34]
[1765371667026,61.54,137.74,137.68,3.34]
[1765371667225,64.13641532,137.74,137.68,3.34]
[1765371667630,6.534,137.73,137.69,3.34]
[1765371668032,0.05397238,137.72,137.7,0.04834363]
[1765371668238,9.3248877,137.72,137.7,0.04834363]
[1765371668930,0.14,137.71,137.7,0.04834363]
[1765371674838,0.14,137.71,137.64,3.15]
[1765371675131,64.15641532,137.72,137.66,3.15]
[1765371675537,6.5354,137.71,137.68,3.15]
[1765371675728,6.59059353,137.71,137.68,3.20474913]
[1765371675930,0.05519353,137.71,137.68,3.20474913]
[1765371676332,0.05519353,137.71,137.68,9.74094913]
[1765371676639,0.05519353,137.71,137.69,3.15]
[1765371680044,6.534,137.73,137.7,3.15]
[1765371680245,0.14,137.77,137.7,5.74641532]
[1765371680542,2.73641532,137.77,137.71,3.15]
[1765371681345,0.05219389,137.75,137.74,3.15]
[1765371682047,61.56,137.78,137.75,3.15]
[1765371682940,0.05568411,137.78,137.75,3.15]
[1765371683845,6.58738411,137.78,137.75,3.15]
[1765371684748,0.05568411,137.78,137.75,3.15]
[1765371687661,6.58728411,137.78,137.75,3.15]
[1765371687961,0.05568411,137.78,137.75,3.15]
[1765371693552,0.05568411,137.78,137.75,9.6829]
[1765371693749,0.05568411,137.78,137.76,3.33]
[1765371695463,0.05568411,137.78,137.77,3.1]
[1765371702665,65.61458011,137.82,137.78,3.1]
[1765371702871,61.86,137.82,137.78,3.1]
[1765371703164,0.3,137.81,137.78,3.1]
[1765371703677,0.05357721,137.81,137.78,3.1]
[1765371706565,0.05357721,137.81,137.79,9.6311]
[1765371706771,0.05357721,137.81,137.79,3.1]
[1765371707159,0.05357721,137.81,137.77,6.5316]
[1765371707160,0.35357721,137.81,137.77,9.6316]
[1765371707359,0.35357721,137.81,137.78,3.1]
[1765371707556,0.35357721,137.81,137.77,3.1]
[1765371707758,0.3,137.79,137.76,0.05527901]
[1765371707962,4.35458011,137.78,137.76,0.05527901]
[1765371708167,0.3,137.77,137.76,0.05527901]
[1765371708377,0.3,137.74,137.71,3.1]
[1765371709371,6.8876567,137.74,137.71,3.15538582]
[1765371710667,0.3,137.72,137.71,0.05538582]
[1765371712273,10.58868011,137.73,137.71,0.05538582]
[1765371712274,10.88868011,137.73,137.71,0.05538582]
[1765371713873,0.3,137.72,137.71,0.05538582]
[1765371715373,0.3,137.73,137.71,0.05538582]
[1765371715574,4.35458011,137.73,137.71,0.05538582]
[1765371717779,0.3,137.72,137.71,0.05538582]
[1765371721484,72.12858011,137.73,137.71,0.05538582]
[1765371721672,72.14858011,137.73,137.71,3.15538582]
[1765371722580,6.5344,137.72,137.71,3.15538582]
[1765371723777,6.5344,137.72,137.71,0.05538582]
[1765371725283,6.8344,137.72,137.71,0.05538582]
[1765371725469,0.3,137.72,137.69,3.26]
[1765371725676,0.3,137.71,137.66,3.26]
[1765371726571,0.05415732,137.7,137.68,3.26]
[1765371726880,0.35415732,137.7,137.67,0.04954089]
[1765371727280,6.8358,137.69,137.67,0.04954089]
[1765371727784,6.5363,137.68,137.67,0.04954089]
[1765371727985,0.3,137.69,137.67,0.04954089]
[1765371728987,6.8359,137.69,137.67,0.04954089]
[1765371730691,6.8363,137.68,137.67,0.04954089]
[1765371731485,6.5363,137.68,137.67,0.04954089]
[1765371731883,6.8463,137.68,137.67,0.04954089]
[1765371734290,0.05415732,137.7,137.67,3.19954089]
[1765371734695,0.05415732,137.7,137.67,7.254121]
[1765371734990,0.31,137.78,137.71,3.15]
[1765371735194,61.89,137.81,137.73,3.15]
[1765371735895,0.04689081,137.78,137.76,3.19781006]
[1765371737082,0.04689081,137.78,137.76,9.73031006]
[1765371737281,0.04689081,137.78,137.77,3.15]
[1765371739801,0.31,137.85,137.78,3.15]
[1765371740190,0.31,137.85,137.79,3.15]
[1765371740389,0.36,137.88,137.79,3.15]
[1765371740590,6.8872,137.88,137.81,3.15]
[1765371740790,0.04729416,137.86,137.83,3.20264172]
[1765371744093,0.04729416,137.86,137.85,3.15]
[1765371744301,0.40729416,137.86,137.83,3.20264172]
[1765371744789,0.04729416,137.86,137.83,3.20264172]
[1765371745701,0.40729416,137.86,137.83,3.20264172]
[1765371746206,0.40729416,137.86,137.83,0.05264172]
[1765371746701,0.40729416,137.86,137.83,3.20264172]
[1765371748606,6.93519416,137.86,137.83,0.05264172]
[1765371748801,0.36,137.85,137.83,0.05264172]
[1765371749208,6.93519416,137.86,137.83,3.20264172]
[1765371750309,0.04729416,137.86,137.83,3.20264172]
[1765371751516,0.40729416,137.86,137.83,3.20264172]
[1765371752901,6.93529416,137.86,137.83,3.20264172]
[1765371753417,6.57529416,137.86,137.83,3.20264172]
[1765371757415,0.04729416,137.86,137.83,3.20264172]
[1765371759009,0.04729416,137.86,137.84,3.31]
[1765371761918,0.04729416,137.86,137.84,9.8386]
[1765371762117,0.04729416,137.86,137.84,3.31]
[1765371765020,9.11884928,137.89,137.86,3.31]
[1765371765523,6.5244,137.94,137.89,3.31]
[1765371765709,6.9144,137.94,137.89,3.31]
[1765371766220,0.04687191,137.93,137.9,3.3657637]
[1765371766422,0.43687191,137.93,137.9,3.3657637]
[1765371766719,0.04687191,137.93,137.9,3.3657637]
[1765371767521,0.43687191,137.93,137.9,3.3657637]
[1765371767814,0.04687191,137.93,137.9,3.3657637]
[1765371768206,0.43687191,137.93,137.9,3.3657637]
[1765371768413,3.02932119,137.93,137.9,3.3657637]
[1765371768725,2.63932119,137.93,137.9,3.3657637]
[1765371769308,0.04687191,137.93,137.9,3.3657637]
[1765371772721,6.96147191,137.93,137.9,3.3657637]
[1765371772923,2.59244928,137.92,137.9,3.3657637]
[1765371773318,0.04687191,137.93,137.9,3.3657637]
[1765371775728,6.57157191,137.93,137.9,3.3657637]
[1765371776228,6.96157191,137.93,137.9,3.3657637]
[1765371776722,0.04687191,137.93,137.9,3.3657637]
[1765371778218,2.59244928,137.92,137.9,3.3657637]
[1765371780226,2.63932119,137.93,137.9,3.3657637]
[1765371780532,0.04687191,137.93,137.9,3.3657637]
[1765371781668,0.43687191,137.93,137.9,3.3657637]
[1765371782134,2.63932119,137.93,137.9,3.3657637]
[1765371783141,0.04687191,137.93,137.9,3.3657637]
[1765371783642,2.63932119,137.93,137.9,3.3657637]
[1765371786936,0.04687191,137.93,137.9,3.3657637]
[1765371787134,2.63932119,137.93,137.9,3.3657637]
[1765371788943,0.39,137.92,137.9,3.3657637]
[1765371789156,0.39,137.92,137.9,0.0557637]
[1765371789644,2.98244928,137.91,137.9,0.0557637]
[1765371791046,0.43687191,137.93,137.9,3.2857637]
[1765371791251,0.04687191,137.93,137.9,3.2857637]
[1765371791638,0.04687191,137.93,137.91,3.23]
[1765371792841,0.04687191,137.93,137.92,3.23]
[1765371793946,6.523,137.97,137.93,3.23]
[1765371794450,0.39,137.95,137.93,3.23]
[1765371794637,2.59244928,137.94,137.9,3.23]
[1765371794843,2.98244928,137.94,137.9,3.23]
[1765371795045,0.04635179,137.93,137.91,3.05772563]
[1765371795442,0.04635179,137.93,137.91,9.58312563]
[1765371795745,0.04635179,137.93,137.92,3.01]
[1765371796148,2.59244928,137.98,137.94,3.01]
[1765371796346,0.44,137.97,137.94,3.01]
[1765371796851,61.48,138.0,137.88,101.5258]
[1765371796852,0.44,137.95,137.92,3.01]
[1765371797356,0.49155688,137.95,137.92,3.05833806]
[1765371797838,3.08400616,137.95,137.92,3.05833806]
[1765371798045,9.60760616,137.95,137.92,3.05833806]
[1765371798447,7.01515688,137.95,137.92,3.05833806]
[1765371798652,7.01515688,137.95,137.92,0.04833806]
[1765371798653,3.03244928,137.93,137.92,0.04833806]
[1765371803056,0.44,137.91,137.86,3.01]
[1765371803254,3.03244928,137.88,137.83,3.01]
[1765371803656,0.44,137.88,137.84,3.01]
[1765371803949,0.0497023,137.87,137.86,3.01]
[1765371804356,3.03244928,137.92,137.87,3.01]
[1765371804554,0.44,137.92,137.87,3.01]
[1765371804760,3.03244928,137.92,137.87,3.01]
[1765371805157,6.5261,137.9,137.87,3.01]
[1765371805356,9.61366638,137.9,137.87,3.06167854]
[1765371806059,6.9664,137.89,137.87,0.05167854]
[1765371808052,6.5264,137.89,137.87,3.06167854]
[1765371809956,9.55884928,137.89,137.87,0.05167854]
[1765371810152,9.55884928,137.89,137.87,3.06167854]
[1765371810353,0.0551171,137.9,137.87,3.06167854]
[1765371810557,0.0551171,137.9,137.88,3.01]
[1765371811460,2.59244928,137.89,137.87,0.05167854]
[1765371812159,2.59244928,137.89,137.87,3.06167854]
[1765371812958,0.0551171,137.9,137.87,3.06167854]
[1765371813959,0.0551171,137.9,137.87,9.58897854]
[1765371814163,0.0551171,137.9,137.88,3.33]
[1765371815955,0.0551171,137.9,137.88,9.8568]
[1765371816561,0.0551171,137.9,137.89,3.33]
[1765371817765,0.0551171,137.9,137.89,9.8564]
[1765371817965,0.0551171,137.9,137.89,3.33]
[1765371821070,6.5245,137.93,137.9,3.33]
[1765371822055,7.01630661,137.93,137.9,3.38133881]
[1765371822262,6.965,137.92,137.9,3.38133881]
[1765371824563,11.01302891,137.92,137.9,3.38133881]
[1765371824767,0.44,137.91,137.9,0.05133881]
[1765371827272,6.9654,137.91,137.9,0.05133881]
[1765371827978,4.04802891,137.92,137.82,176.61465797]
[1765371827979,0.44,137.88,137.85,3.33]
[1765371828680,6.9671,137.88,137.85,3.33]
[1765371828876,0.44,137.87,137.85,0.04913291]
[1765371829370,6.5278,137.86,137.85,0.04913291]
[1765371830768,6.9678,137.86,137.85,0.04913291]
[1765371830970,0.44,137.83,137.8,3.33]
[1765371831981,6.5299,137.82,137.8,3.33]
[1765371832277,6.58263872,137.82,137.8,3.37907175]
[1765371835268,7.02263872,137.82,137.8,0.04907175]
[1765371835873,7.02263872,137.82,137.8,3.37907175]
[1765371836681,6.58263872,137.82,137.8,3.37907175]
[1765371839382,7.02263872,137.82,137.8,3.37907175]
[1765371839579,0.44,137.81,137.8,0.04907175]
[1765371839877,6.9702,137.81,137.8,0.04907175]
[1765371840067,65.62076763,137.82,137.8,0.04907175]
[1765371840274,62.01273872,137.82,137.8,0.04907175]
[1765371841377,68.54243872,137.82,137.8,0.04907175]
[1765371841582,0.44,137.81,137.8,0.04907175]
[1765371842275,6.9702,137.81,137.8,0.04907175]
[1765371842975,61.57273872,137.82,137.8,3.37907175]
[1765371843485,0.44,137.81,137.8,0.04907175]
[1765371844386,68.10243872,137.82,137.8,0.04907175]
[1765371844587,68.55243872,137.82,137.8,0.04907175]
[1765371846184,6.9802,137.81,137.8,0.04907175]
[1765371846384,66.07076763,137.82,137.74,3.12]
[1765371846587,66.01802891,137.82,137.74,3.12]
[1765371846783,72.54812891,137.82,137.78,9.6514]
[1765371847290,0.49693473,137.81,137.79,0.0511009]
[1765371848186,0.44,137.8,137.79,0.0511009]
[1765371848790,4.48802891,137.8,137.79,0.0511009]
[1765371849891,0.44,137.78,137.74,3.04]
[1765371850483,6.9722,137.77,137.74,3.04]
[1765371850885,0.49246253,137.77,137.74,3.09515522]
[1765371851688,0.05246253,137.77,137.75,3.04]
[1765371852194,0.05246253,137.77,137.75,9.5729]
[1765371852394,0.05246253,137.77,137.76,3.04]
[1765371854393,0.49246253,137.77,137.74,3.09515522]
[1765371854889,0.05246253,137.77,137.74,3.09515522]
[1765371855895,0.05246253,137.77,137.74,9.62855522]
[1765371856096,0.05246253,137.77,137.75,3.04]
[1765371857191,0.44,137.74,137.68,3.04]